[Event "European Women Blitz-ch 2024"]
[Site "Monaco"]
[Date "2025.01.10"]
[Round "13.5"]
[White "Stefanova, Antoaneta"]
[Black "Kulon, Klaudia"]
[Result "1/2-1/2"]
[Annotator "TA"]
[ECO "B08"]
[WhiteElo "2418"]
[BlackElo "2393"]
[PlyCount "86"]
[EventDate "2025.01.06"]
[EventType "swiss"]
[EventCountry "MNC"]
[SourceTitle "playchess.com"]
[Source "ChessBase"]
[SourceQuality "1"]
[TimeControl "180+2"]

{[%evp 10,86,27,0,49,47,42,43,101,89,94,62,101,102,128,112,200,55,58,50,66,61,113,134,129,130,160,92,150,60,78,46,45,34,85,66,122,108,96,73,85,80,182,18,232,231,221,218,195,154,281,89,76,54,168,98,117,113,110,100,122,60,85,0,41,52,64,75,57,0,0,0,0,0,0,0,0,0,0]} 1. d4 {[%emt 0:00:01]} Nf6 {[%emt 0:00:00]} 2. Nf3 {[%emt 0:00:01]} g6 {[%emt 0:00:01]} 3. Nc3 {[%emt 0:00:01]} Bg7 {[%emt 0:00:01]} 4. e4 {[%emt 0:00:01]} d6 {[%emt 0:00:01]} 5. Bf4 {[%emt 0:00:11]} O-O {[%emt 0:00:01]} 6. Qd2 {[%emt 0:00:01]} a6 {[%emt 0:00:02]} (6... c5 $11 {should be considered.} 7. dxc5 dxc5) 7. Bh6 {[%emt 0:00:06]} b5 {[%emt 0:00:02]} 8. Bd3 {[%emt 0:00:05]} c5 {[%emt 0:00:06]} (8... Nc6 $1 $14) 9. Bxg7 {[%emt 0:00:10]} Kxg7 {[%emt 0:00:01]} 10. dxc5 {[%emt 0:00:07]} dxc5 {[%emt 0:00:02]} 11. e5 {[%emt 0:00:01]} Ng8 {[%emt 0:00:15]} 12. Qe3 {[%emt 0:00:16][%cal Oe1c1] White is more active.} Bb7 {[%emt 0:00:21]} (12... Bg4 $16 {was necessary.}) 13. Qxc5 {[%emt 0:00:08]} (13. h4 $18) 13... Nd7 {[%emt 0:00:00]} 14. Qe3 {[%emt 0:00:05]} Qc7 {[%emt 0:00:11]} 15. Be4 {[%emt 0:00:48]} b4 {[%emt 0:00:30]} (15... Bxe4 $1 $14 16. Qxe4 Nc5) 16. Bxb7 $16 {[%emt 0:00:11]} Qxb7 {[%emt 0:00:01]} 17. Ne2 {[%emt 0:00:06]} Rac8 {[%emt 0:00:06][%cal Oe7e6]} 18. Ned4 {[%emt 0:00:02]} (18. e6 $1 {[%cal Re6d7]} fxe6 19. Ned4 (19. Qxe6 Rf6 $14)) 18... Nb6 {[%emt 0:00:08]} (18... e6 $142) 19. Rb1 {[%emt 0:00:19]} (19. O-O $16) 19... Nc4 {[%emt 0:00:07]} 20. Qe2 {[%emt 0:00:01]} e6 {[%emt 0:00:08]} 21. O-O {[%emt 0:00:03][%cal Oa2a3]} Rfd8 {[%emt 0:00:01]} ({Black should try} 21... Ne7 $14) 22. c3 {[%emt 0:00:18]} a5 {[%emt 0:00:03]} (22... Ne7 $14) 23. cxb4 {[%emt 0:00:02]} axb4 {[%emt 0:00:03]} 24. b3 {[%emt 0:00:01]} Na3 {[%emt 0:00:05]} 25. Rbd1 {[%emt 0:00:01]} Ne7 {[%emt 0:00:03]} (25... h6 $16) 26. h4 $2 {[%emt 0:00:04]} (26. Ng5 $18 Kg8 27. Ne4) 26... h5 $2 {[%emt 0:01:35]} (26... Nd5 $11 {and Black stays safe.}) 27. Ng5 $18 {[%emt 0:00:05]} Kg8 {[%emt 0:00:00]} 28. Ne4 {[%emt 0:00:05]} Nd5 {[%emt 0:00:00]} 29. Qf3 {[%emt 0:00:05] and g4 should not be overlooked} Qa7 {[%emt 0:00:00]} (29... Qc7 $16) 30. Ne2 $2 {[%emt 0:00:09]} (30. g4 $18 {and White stays clearly on top.}) 30... Nb5 $16 {[%emt 0:00:00][%cal Ob5c3]} 31. N2g3 {[%emt 0:00:09]} (31. Rxd5 {feels hotter.} exd5 32. Nf6+ Kg7 33. Qg3) 31... Qe7 {[%emt 0:00:00] [#]} (31... Nbc3 $14) 32. Nf6+ {[%emt 0:00:03]} (32. Rxd5 $1 $18 exd5 33. Nf6+ Kf8 34. Qf4) 32... Nxf6 {[%emt 0:00:00]} 33. exf6 {[%emt 0:00:01]} Qf8 {[%emt 0:00:00]} 34. Rxd8 {[%emt 0:00:04]} Rxd8 {[%emt 0:00:00]} 35. Qf4 {[%emt 0:00:01] Against Rd2} (35. Rc1 $16) 35... Rd4 {[%emt 0:00:00] [#]} 36. Qg5 {[%emt 0:00:02]} (36. Qe3 $1 $16) 36... Rd5 {[%emt 0:00:00]} 37. Qe3 {[%emt 0:00:01]} Nc3 {[%emt 0:00:00][%cal Of8d8]} 38. a4 $1 {[%emt 0:00:01]} Qd8 {[%emt 0:00:00]} 39. Qf4 {[%emt 0:00:03]} ({White should try} 39. Ne4 $14) 39... Rd4 $36 {[%emt 0:00:02][%mdl 2048] Black fights for an advantage.} 40. Qe5 {[%emt 0:00:12]} Rd5 {[%emt 0:00:02]} 41. Qf4 {[%emt 0:00:01]} Rd4 {[%emt 0:00:00]} 42. Qe5 {[%emt 0:00:01]} Rd5 {[%emt 0:00:01]} 43. Qf4 {[%emt 0:00:01]} Rd4 {[%emt 0:00:11]} 1/2-1/2

[Event "European Women Blitz-ch 2024"]
[Site "Monaco"]
[Date "2025.01.10"]
[Round "13.6"]
[White "Arabidze, Meri"]
[Black "Narva, Mai"]
[Result "1-0"]
[Annotator "RC"]
[ECO "A41"]
[WhiteElo "2457"]
[BlackElo "2398"]
[PlyCount "89"]
[EventDate "2025.01.06"]
[EventType "swiss"]
[EventCountry "MNC"]
[SourceTitle "playchess.com"]
[Source "ChessBase"]
[SourceQuality "1"]
[TimeControl "180+2"]

1. d4 {[%emt 0:00:02]} g6 {[%emt 0:00:02]} 2. Nf3 {[%emt 0:00:02]} Bg7 {[%emt 0:00:02]} 3. g3 {[%emt 0:00:02]} d6 {[%emt 0:00:04]} 4. c4 {[%emt 0:00:03]} Nd7 {[%emt 0:00:03]} 5. Nc3 {[%emt 0:00:02]} e5 {[%emt 0:00:02]} 6. Bg2 {[%emt 0:00:01]} Ne7 {[%emt 0:00:02]} 7. O-O {[%emt 0:00:04]} O-O {[%emt 0:00:02]} 8. dxe5 {[%emt 0:00:08]} dxe5 {[%emt 0:00:04]} 9. Qc2 {[%emt 0:00:02]} c6 {[%emt 0:00:28]} 10. b3 {[%emt 0:00:01]} Nc5 {[%emt 0:00:21]} 11. Ba3 {[%emt 0:00:23]} Ne6 {[%emt 0:00:14]} 12. Rad1 {[%emt 0:00:09]} Nd4 {[%emt 0:00:05]} 13. Nxd4 {[%emt 0:00:32]} exd4 {[%emt 0:00:01]} 14. e3 {[%emt 0:00:07]} Bg4 {[%emt 0:00:23]} 15. Rd2 {[%emt 0:00:15]} Bf5 {[%emt 0:00:06]} 16. Qc1 {[%emt 0:00:08]} d3 {[%emt 0:01:05]} 17. e4 {[%emt 0:00:11]} Be6 {[%emt 0:00:02]} 18. Rfd1 {[%emt 0:00:10]} Re8 {[%emt 0:00:06]} 19. Rxd3 {[%emt 0:00:02]} Qa5 {[%emt 0:00:02]} 20. Bb2 {[%emt 0:00:06]} Rad8 {[%emt 0:00:13]} 21. h3 {[%emt 0:00:07]} h5 {[%emt 0:00:04]} 22. a3 {[%emt 0:00:24]} Rxd3 {[%emt 0:00:02]} 23. Rxd3 {[%emt 0:00:01]} Rd8 {[%emt 0:00:01]} 24. b4 {[%emt 0:00:13]} Qc7 {[%emt 0:00:02]} 25. Rxd8+ {[%emt 0:00:10]} Qxd8 {[%emt 0:00:01]} 26. Na4 {[%emt 0:00:11]} Bxb2 {[%emt 0:00:02]} 27. Nxb2 {[%emt 0:00:02]} Qd4 {[%emt 0:00:02]} 28. h4 {[%emt 0:00:09]} b6 {[%emt 0:00:05]} 29. Qc2 {[%emt 0:00:02]} c5 {[%emt 0:00:03]} 30. Bf1 {[%emt 0:00:07]} Nc6 {[%emt 0:00:02]} 31. bxc5 {[%emt 0:00:02]} bxc5 {[%emt 0:00:02]} 32. Nd3 {[%emt 0:00:03]} Qxe4 {[%emt 0:00:02]} 33. Qc3 {[%emt 0:00:03]} Qd4 {[%emt 0:00:03]} 34. Qxd4 {[%emt 0:00:02]} cxd4 {[%emt 0:00:02]} 35. Nb4 {[%emt 0:00:01]} Nxb4 {[%emt 0:00:06]} 36. axb4 {[%emt 0:00:01]} Bf5 {[%emt 0:00:01]} 37. Kg2 {[%emt 0:00:02]} Be4+ {[%emt 0:00:04]} 38. f3 {[%emt 0:00:01]} Bc2 {[%emt 0:00:01]} 39. Kf2 {[%emt 0:00:01]} Kf8 {[%emt 0:00:01]} 40. Ke1 {[%emt 0:00:01]} Ke7 {[%emt 0:00:03]} 41. Kd2 {[%emt 0:00:01]} Bf5 {[%emt 0:00:01]} 42. Bd3 {[%emt 0:00:01]} Be6 {[%emt 0:00:01]} 43. c5 {[%emt 0:00:03]} f5 {[%emt 0:00:02]} 44. Be2 {[%emt 0:00:03]} g5 {[%emt 0:00:07]} 45. f4 {[%emt 0:00:02]} 1-0

[Event "European Women Blitz-ch 2024"]
[Site "Monaco"]
[Date "2025.01.10"]
[Round "13.7"]
[White "Paehtz, Elisabeth"]
[Black "Wagner, Dinara"]
[Result "1/2-1/2"]
[Annotator "ChessBase"]
[ECO "D02"]
[WhiteElo "2428"]
[BlackElo "2437"]
[PlyCount "75"]
[EventDate "2025.01.06"]
[EventType "swiss"]
[EventCountry "MNC"]
[SourceTitle "playchess.com"]
[Source "ChessBase"]
[SourceQuality "1"]
[TimeControl "180+2"]

1. d4 {[%emt 0:00:01]} Nf6 {[%emt 0:00:00]} 2. Nf3 {[%emt 0:00:01]} d5 {[%emt 0:00:01]} 3. c3 {[%emt 0:00:01]} c6 {[%emt 0:00:00]} 4. Bf4 {[%emt 0:00:02]} Bf5 {[%emt 0:00:01]} 5. e3 {[%emt 0:00:01]} e6 {[%emt 0:00:02]} 6. Nbd2 {[%emt 0:00:02]} Nbd7 {[%emt 0:00:02]} 7. Be2 {[%emt 0:00:04]} Be7 {[%emt 0:00:00]} 8. h3 {[%emt 0:00:02]} h6 {[%emt 0:00:03]} 9. Qb3 {[%emt 0:00:02]} Qb6 {[%emt 0:00:01]} 10. Ne5 {[%emt 0:00:07]} Nxe5 {[%emt 0:00:26]} 11. Bxe5 {[%emt 0:00:01]} O-O {[%emt 0:00:01]} 12. g4 {[%emt 0:00:09]} Bg6 {[%emt 0:00:01]} 13. h4 {[%emt 0:00:05]} Ne4 {[%emt 0:00:10]} 14. Nxe4 {[%emt 0:00:19]} Bxe4 {[%emt 0:00:01]} 15. f3 {[%emt 0:00:01]} Bg6 {[%emt 0:00:02]} 16. h5 {[%emt 0:00:08]} Bh7 {[%emt 0:00:01]} 17. Qxb6 {[%emt 0:00:10]} axb6 {[%emt 0:00:01]} 18. Kd2 {[%emt 0:00:03]} b5 {[%emt 0:00:24]} 19. a3 {[%emt 0:00:01]} Rfe8 {[%emt 0:00:13]} 20. Rag1 {[%emt 0:00:02]} f6 {[%emt 0:00:05]} 21. Bg3 {[%emt 0:00:11]} Bd8 {[%emt 0:00:06]} 22. Bh4 {[%emt 0:00:05]} e5 {[%emt 0:00:08]} 23. Bd1 {[%emt 0:00:27]} exd4 {[%emt 0:00:08]} 24. exd4 {[%emt 0:00:04]} Bc7 {[%emt 0:00:01]} 25. Bg3 {[%emt 0:00:03]} Bxg3 {[%emt 0:00:05]} 26. Rxg3 {[%emt 0:00:01]} Re7 {[%emt 0:00:00]} 27. Re1 {[%emt 0:00:04]} Rae8 {[%emt 0:00:03]} 28. Rgg1 {[%emt 0:00:15]} Rxe1 {[%emt 0:00:04]} 29. Rxe1 {[%emt 0:00:01]} Rxe1 {[%emt 0:00:01]} 30. Kxe1 {[%emt 0:00:01]} Kf8 {[%emt 0:00:00]} 31. Kf2 {[%emt 0:00:09]} Ke7 {[%emt 0:00:02]} 32. Kg3 {[%emt 0:00:05]} f5 {[%emt 0:00:09]} 33. Kf4 {[%emt 0:00:05]} fxg4 {[%emt 0:00:03]} 34. fxg4 {[%emt 0:00:04]} Kf6 {[%emt 0:00:00]} 35. Be2 {[%emt 0:00:07]} Bc2 {[%emt 0:00:02]} 36. Bf3 {[%emt 0:00:06]} Bb3 {[%emt 0:00:02]} 37. Be2 {[%emt 0:00:03]} Bc2 {[%emt 0:00:01]} 38. Bf3 {[%emt 0:00:01]} 1/2-1/2

[Event "European Women Blitz-ch 2024"]
[Site "Monaco"]
[Date "2025.01.10"]
[Round "13.8"]
[White "Khademalsharieh, Sarasadat"]
[Black "Shvedova, Alexandra"]
[Result "1/2-1/2"]
[Annotator "TA"]
[ECO "E46"]
[WhiteElo "2458"]
[BlackElo "2266"]
[PlyCount "126"]
[EventDate "2025.01.06"]
[EventType "swiss"]
[EventCountry "MNC"]
[SourceTitle "playchess.com"]
[Source "ChessBase"]
[SourceQuality "1"]
[TimeControl "180+2"]

{[%evp 9,126,0,14,0,0,0,11,18,15,29,39,55,33,35,46,37,46,23,33,25,63,54,46,50,109,58,66,39,45,48,50,54,63,-224,40,35,105,104,102,86,102,103,108,108,139,112,110,110,129,113,113,113,437,230,558,536,474,0,595,575,840,810,1018,683,672,8,956,0,0,0,0,0,0,0,0,0,121,0,0,0,0,0,29970,0,29973,0,0,0,0,0,0,0,0,0,0,0,79,0,0,0,0,0,0,0,0,0,0,0,0,0,0,0,0,0,0,0,0,0,0]} 1. d4 {[%emt 0:00:02]} Nf6 {[%emt 0:00:01]} 2. c4 {[%emt 0:00:02]} e6 {[%emt 0:00:01]} 3. Nc3 {[%emt 0:00:01]} Bb4 {[%emt 0:00:02]} 4. e3 {[%emt 0:00:01]} O-O {[%emt 0:00:03]} 5. Bd2 {[%emt 0:00:01]} Re8 {[%emt 0:00:02]} 6. Bd3 {[%emt 0:00:07]} d5 {[%emt 0:00:02]} 7. Nf3 {[%emt 0:00:11]} dxc4 {[%emt 0:00:19]} 8. Bxc4 {[%emt 0:00:01]} c5 {[%emt 0:00:01]} 9. a3 {[%emt 0:00:19]} cxd4 {[%emt 0:00:16]} 10. axb4 {[%emt 0:00:03]} dxc3 {[%emt 0:00:02]} 11. Bxc3 {[%emt 0:00:06]} Qe7 {[%emt 0:00:23] Black is weak on the dark squares} 12. O-O {[%emt 0:00:09]} Nbd7 {[%emt 0:00:15]} 13. Qb3 {[%emt 0:00:25]} Nb6 {[%emt 0:00:25]} 14. Bd3 {[%emt 0:00:02]} Bd7 {[%emt 0:00:03][%cal Bc8d7,Bd7e8,Be8f7][%mdl 32]} 15. Ne5 {[%emt 0:00:17]} Red8 {[%emt 0:00:12]} 16. Bd4 {[%emt 0:00:10]} Nfd5 {[%emt 0:00:25]} (16... Be8 $14) 17. b5 {[%emt 0:00:23]} (17. Bc5 $16 Qf6 18. f4) 17... Be8 $14 {[%emt 0:00:09]} 18. Rfd1 {[%emt 0:00:04] White has more active pieces.} f6 {[%emt 0:00:20]} 19. Nc4 {[%emt 0:00:01]} Bf7 {[%emt 0:00:15]} 20. Nxb6 {[%emt 0:00:13]} Nxb6 {[%emt 0:00:11] [#]} 21. Rxa7 $2 {[%emt 0:00:14][%mdl 8192]} Rxa7 $2 {[%emt 0:00:01]} (21... e5 $19 22. Qc2 exd4 23. Bxh7+ Kh8 24. Rxa8 Rxa8 25. exd4 Nc4) 22. Bxb6 {[%emt 0:00:01] A strong pair of Bishops.} Raa8 {[%emt 0:00:01]} ({Black should try} 22... e5 $14 23. Qc3 (23. Bxd8 $2 Bxb3 24. Bxe7 Bxd1 $19) (23. Qc2 Rxd3 24. Qxd3 Ra8 $16) 23... Rxd3 24. Qxd3 Ra2) 23. Bxd8 $16 {[%emt 0:00:04]} Rxd8 {[%emt 0:00:02]} 24. Qc2 {[%emt 0:00:05]} g6 {[%emt 0:00:05]} 25. h3 {[%emt 0:00:08]} e5 {[%emt 0:00:01]} 26. Be2 {[%emt 0:00:05]} Kg7 {[%emt 0:00:03]} 27. Rxd8 {[%emt 0:00:05]} Qxd8 {[%emt 0:00:01][%mdl 4096] Endgame KQB-KQB. White is a pawn up.} 28. Bf3 {[%emt 0:00:05]} Qb6 {[%emt 0:00:07]} 29. Qe4 {[%emt 0:00:01]} Qxb5 {[%emt 0:00:04]} 30. Qxb7 {[%emt 0:00:01]} Qd3 $2 {[%emt 0:00:03][%mdl 8192]} (30... Qxb7 $16 31. Bxb7 Bc4) 31. Bc6 {[%emt 0:00:08]} (31. b4 $142) 31... Kf8 $2 {[%emt 0:00:04]} (31... Qb3 {is tougher.} 32. Qxb3 Bxb3) 32. Qb8+ $18 {[%emt 0:00:08]} Kg7 {[%emt 0:00:01]} 33. Qb7 {[%emt 0:00:05]} Kf8 $1 {[%emt 0:00:01]} 34. b4 {[%emt 0:00:03]} Qd1+ {[%emt 0:00:01]} 35. Kh2 {[%emt 0:00:01]} Qd2 {[%emt 0:00:01]} 36. Qb8+ {[%emt 0:00:04]} Kg7 {[%emt 0:00:01]} 37. Qa7 $2 {[%emt 0:00:01]} (37. b5 $18) 37... Kf8 $2 {[%emt 0:00:03][%mdl 8192]} (37... Qxb4 $11 38. Bd5 Qf8) 38. e4 $2 {[%emt 0:00:02]} (38. b5 $18) 38... Qxb4 $11 {[%emt 0:00:01]} 39. Qd7 {[%emt 0:00:02]} Qe7 {[%emt 0:00:02]} 40. Qc8+ {[%emt 0:00:02]} Kg7 {[%emt 0:00:01]} 41. Bd5 {[%emt 0:00:02]} Bxd5 {[%emt 0:00:06]} 42. exd5 {[%emt 0:00:01] KQ-KQ} Kf7 {[%emt 0:00:01]} (42... e4 $11 {remains equal.}) 43. Qc6 {[%emt 0:00:02]} ({White has to play} 43. Qh8 $16 Qc5 44. Qxh7+ Kf8 45. d6 (45. Qxg6 Qxf2 46. Qe4 Qd2 $16) 45... Qxd6 46. Qxg6) 43... e4 {[%emt 0:00:03]} 44. d6 {[%emt 0:00:06]} Qe5+ {[%emt 0:00:01]} 45. g3 {[%emt 0:00:01]} Qd4 $2 {[%emt 0:00:05][%mdl 8192]} (45... g5 $11) 46. Kg2 $2 {[%emt 0:00:07]} (46. Qd7+ Kg8 47. Qe6+ Kh8 48. Kg2 e3 49. Qe8+ (49. Qxe3 Qxd6 50. Qe4 f5 $11) (49. fxe3 Qd2+ 50. Kf3 Qd1+ 51. Ke4 Qc2+ 52. Kd4 Kg7 $18) 49... Kg7 50. Qe7+ (50. Qxe3 Qxe3 51. fxe3 Kf7 $11) 50... Kg8 51. d7 (51. Qxe3 Qxe3 52. fxe3 Kf7 $11) (51. fxe3 Qd2+ 52. Kf3 Qd1+ 53. Ke4 Qb1+ 54. Kd4 Qb4+ 55. Kd5 Qb5+ 56. Kd4 Qb4+ 57. Kd3 Qb3+ 58. Ke2 Qc2+ 59. Ke1 Qb1+ 60. Kf2 Qc2+ 61. Kf3 Qf5+ 62. Ke2 Qc2+ 63. Ke1 Qc1+ 64. Kf2 Qd2+ 65. Kf3 Qd1+ 66. Kf2 Qc2+ 67. Kg1 Qd1+ 68. Kf2 Qc2+ $11)) 46... Qd3 $2 {[%emt 0:00:01][%mdl 8192]} (46... Ke6 $11) 47. d7 $2 {[%emt 0:00:04]} (47. Qc7+ {mates} Ke6 48. Qe7+ (48. Qxh7 Qf3+ 49. Kg1 Kxd6 $11) 48... Kf5 49. d7 (49. Qxh7 Qf3+ 50. Kg1 Qd1+ 51. Kh2 Qxd6 $11) 49... Qf3+ 50. Kg1 Qd1+ 51. Kh2 Qd2 52. Kg2 (52. d8=B Qxf2+ 53. Kh1 Qf3+ 54. Kh2 Qe2+ 55. Kg1 Qe3+ 56. Kg2 Qf3+ 57. Kh2 Qf2+ 58. Kh1 Qf1+ 59. Kh2 Qf2+ $11) (52. g4+ Kg5 $18)) 47... Qf3+ {[%emt 0:00:01]} 48. Kg1 {[%emt 0:00:02]} Qd1+ {[%emt 0:00:01]} 49. Kh2 {[%emt 0:00:01][%cal Oc6c7] White wants to mate with Qc7!.} Qd2 {[%emt 0:00:03]} 50. Qc4+ {[%emt 0:00:08]} Ke7 {[%emt 0:00:02]} 51. Qxe4+ {[%emt 0:00:01]} Kxd7 {[%emt 0:00:01]} 52. Kg2 {[%emt 0:00:01]} Kd8 {[%emt 0:00:03] [#]} (52... Kd6 $11) 53. Qa8+ {[%emt 0:00:01]} (53. Qe6 $1 $16 {[%cal Re6g8]}) 53... Ke7 {[%emt 0:00:01]} 54. Qh8 {[%emt 0:00:02]} Qd5+ {[%emt 0:00:01]} 55. Kh2 {[%emt 0:00:01]} Qd4 {[%emt 0:00:02]} 56. Qxh7+ {[%emt 0:00:02]} Kd6 $1 {[%emt 0:00:02]} 57. Kg1 {[%emt 0:00:07]} Qd1+ {[%emt 0:00:01]} 58. Kg2 {[%emt 0:00:01][%cal Oh7f7] Strongly threatening Qf7!.} Qd5+ {[%emt 0:00:01]} 59. Kh2 {[%emt 0:00:01]} Qd4 {[%emt 0:00:01]} 60. Kg2 {[%emt 0:00:01]} Qd5+ {[%emt 0:00:01]} 61. Kh2 {[%emt 0:00:01]} Qd4 {[%emt 0:00:01]} 62. Kg1 {[%emt 0:00:02]} Qd1+ {[%emt 0:00:01]} 63. Kh2 {[%emt 0:00:01]} Qd4 $1 {[%emt 0:00:01]} 1/2-1/2

[Event "European Women Blitz-ch 2024"]
[Site "Monaco"]
[Date "2025.01.10"]
[Round "13.9"]
[White "Batsiashvili, Nino"]
[Black "Charkhalashvili, Inga"]
[Result "1-0"]
[Annotator "TA"]
[ECO "D46"]
[WhiteElo "2476"]
[BlackElo "2240"]
[PlyCount "68"]
[EventDate "2025.01.06"]
[EventType "swiss"]
[EventCountry "MNC"]
[SourceTitle "playchess.com"]
[Source "ChessBase"]
[SourceQuality "1"]
[TimeControl "180+2"]

{[%evp 16,68,41,28,57,76,62,48,84,6,93,91,81,95,185,185,222,207,215,226,230,152,175,170,191,185,192,104,229,66,186,178,234,187,221,235,279,221,198,105,115,107,89,86,90,89,92,94,274,273,366,366,446,382,462]} 1. d4 {[%emt 0:00:01]} Nf6 {[%emt 0:00:00]} 2. c4 {[%emt 0:00:01]} e6 {[%emt 0:00:02]} 3. Nc3 {[%emt 0:00:01]} d5 {[%emt 0:00:01]} 4. Nf3 {[%emt 0:00:02]} c6 {[%emt 0:00:03]} 5. e3 {[%emt 0:00:05]} Be7 {[%emt 0:00:01]} 6. Be2 {[%emt 0:00:01]} O-O {[%emt 0:00:01]} 7. O-O {[%emt 0:00:02]} Nbd7 {[%emt 0:00:01]} 8. Qc2 {[%emt 0:00:01]} dxc4 {[%emt 0:00:08]} 9. Bxc4 {[%emt 0:00:01]} b5 {[%emt 0:00:01]} 10. Bd3 {[%emt 0:00:02]} Bb7 {[%emt 0:00:04]} 11. e4 {[%emt 0:00:10][%cal Be3e4,Be4e5][%mdl 32]} h6 {[%emt 0:00:03]} 12. a3 {[%emt 0:00:06]} (12. e5 $16) 12... b4 {[%emt 0:00:35]} (12... c5 $11 {remains equal.}) 13. axb4 $16 {[%emt 0:00:02]} Bxb4 {[%emt 0:00:02]} 14. Qe2 {[%emt 0:00:17]} Bxc3 {[%emt 0:00:19]} (14... Qe7 $16) 15. bxc3 $18 {[%emt 0:00:01]} Re8 {[%emt 0:00:13]} 16. e5 {[%emt 0:00:01]} Nd5 {[%emt 0:00:01] [#]} 17. Qe4 $1 {[%emt 0:00:14]} Nf8 {[%emt 0:00:01] Against Qh7+} 18. Bd2 {[%emt 0:00:02] and Qg4 should not be overlooked Black is weak on the dark squares} Ne7 {[%emt 0:00:36]} 19. Rfb1 {[%emt 0:00:10]} Qc7 {[%emt 0:00:08]} 20. Qg4 {[%emt 0:00:11]} Kh8 {[%emt 0:00:18]} 21. Be4 {[%emt 0:00:05]} (21. Qh5 $18) 21... Ng8 {[%emt 0:00:34]} (21... Reb8 $16) 22. h4 $2 {[%emt 0:00:05]} (22. c4 $18) 22... a5 {[%emt 0:00:09]} (22... f5 $14 23. exf6 Nxf6) 23. Qf4 {[%emt 0:00:09]} a4 {[%emt 0:00:06]} (23... Reb8 {is a better defense.} 24. c4 Ng6) 24. Bc1 {[%emt 0:00:05][%cal Bd2c1,Bc1a3,Ba3d6,Bd6c5,Bc5d4][%mdl 32]} Ng6 {[%emt 0:00:03]} 25. Qe3 {[%emt 0:00:04]} N8e7 {[%emt 0:00:05]} 26. c4 {[%emt 0:00:05] Dodges Nd5} Nf5 {[%emt 0:00:07]} 27. Bxf5 {[%emt 0:00:05]} ({White should play} 27. Qc3 $18) 27... exf5 $16 {[%emt 0:00:01]} 28. h5 {[%emt 0:00:04]} Nf8 {[%emt 0:00:03][%cal Bg6f8,Bf8e6,Be6d8][%mdl 32]} 29. Ba3 {[%emt 0:00:03]} Ne6 {[%emt 0:00:03]} 30. Bd6 $36 {[%emt 0:00:03][%mdl 2048] White has strong initiative.} Qd7 {[%emt 0:00:04]} 31. Qd3 {[%emt 0:00:06] White is much more active.} c5 $2 {[%emt 0:00:05]} 32. d5 $18 {[%emt 0:00:07]} (32. Bxc5 $2 Nxc5 33. Rxb7 Nxb7 $19 (33... Nxd3 $2 {too greedy.} 34. Rxd7 a3 35. Rb7 $18)) ({Not} 32. dxc5 Be4 33. Qa3 Bxb1 34. Rxb1 Qc6 $17) 32... Nd8 {[%emt 0:00:02]} 33. Bxc5 {[%emt 0:00:05]} Rc8 {[%emt 0:00:03]} 34. Bd4 {[%emt 0:00:03]} Ba6 {[%emt 0:00:07]} 1-0